[Event "10th LBHM Open 2024"]
[Site "Pune"]
[Date "2024.05.21"]
[Round "8.2"]
[White "Neelash Saha"]
[Black "Nitin, S.."]
[Result "1-0"]
[ECO "E71"]
[WhiteElo "2483"]
[BlackElo "2356"]
[PlyCount "59"]
[EventDate "2024.05.21"]
[EventType "swiss"]
[EventCountry "IND"]
[TimeControl "5400+30"]

1. d4 {[%emt 0:00:46]} Nf6 {[%emt 0:00:34]} 2. c4 {[%emt 0:00:07]} g6 {[%emt 0:00:04]} 3. Nc3 {[%emt 0:00:04]} Bg7 {[%emt 0:00:06]} 4. e4 {[%emt 0:00:03]} d6 {[%emt 0:00:06]} 5. h3 {[%emt 0:00:05]} O-O {[%emt 0:00:33]} 6. Be3 {[%emt 0:00:08]} Nc6 {[%emt 0:01:48]} 7. Nge2 {[%emt 0:00:09]} e5 {[%emt 0:07:30]} 8. d5 {[%emt 0:00:05]} Nd4 {[%emt 0:00:16]} 9. Qd2 {[%emt 0:00:05]} a6 {[%emt 0:19:30]} 10. Nxd4 {[%emt 0:15:24]} exd4 {[%emt 0:00:12]} 11. Bxd4 {[%emt 0:00:02]} Re8 {[%emt 0:08:46]} 12. f3 {[%emt 0:06:41]} Bd7 {[%emt 0:03:15]} 13. Bd3 {[%emt 0:05:50]} c5 {[%emt 0:09:08]} 14. dxc6 {[%emt 0:05:15]} bxc6 {[%emt 0:00:10]} 15. O-O {[%emt 0:00:25]} Qa5 {[%emt 0:00:27]} 16. Rf2 {[%emt 0:03:10]} Ng4 {[%emt 0:07:06]} 17. Bxg7 {[%emt 0:03:33]} Nxf2 {[%emt 0:00:47]} 18. Qh6 {[%emt 0:06:29]} Qc5 {[%emt 0:05:19]} 19. b4 {[%emt 0:00:09]} Nxh3+ {[%emt 0:02:17]} 20. Kh2 {[%emt 0:00:07]} Qh5 {[%emt 0:00:19]} 21. gxh3 {[%emt 0:01:25]} Qxf3 {[%emt 0:00:24]} 22. Bd4 {[%emt 0:00:06]} Re5 {[%emt 0:02:32]} 23. Be2 {[%emt 0:00:09]} Qf6 {[%emt 0:00:25]} 24. Rf1 {[%emt 0:00:08]} Qe7 {[%emt 0:04:36]} 25. Qf4 {[%emt 0:01:06]} a5 {[%emt 0:03:56]} 26. b5 {[%emt 0:01:03]} cxb5 {[%emt 0:02:20]} 27. cxb5 {[%emt 0:00:49]} Rc8 {[%emt 0:01:01]} 28. Bxe5 {[%emt 0:02:19]} dxe5 {[%emt 0:00:05]} 29. Qg3 {[%emt 0:00:34]} Be6 {[%emt 0:00:17]} 30. b6 {[%emt 0:00:50]} 1-0

[Event "10th LBHM Open 2024"]
[Site "Pune"]
[Date "2024.05.21"]
[Round "8.3"]
[White "Sharnarthi Viresh"]
[Black "Bhosale Shriraj"]
[Result "1-0"]
[ECO "D73"]
[WhiteElo "2078"]
[BlackElo "2036"]
[PlyCount "137"]
[EventDate "2024.05.21"]
[EventType "swiss"]
[EventCountry "IND"]
[TimeControl "5400+30"]

1. d4 {[%emt 0:00:03]} d5 {[%emt 0:02:45]} 2. c4 {[%emt 0:00:05]} c6 {[%emt 0:00:40]} 3. Nf3 {[%emt 0:00:10]} Nf6 {[%emt 0:00:11]} 4. g3 dxc4 {[%emt 0:00:26]} 5. Bg2 {[%emt 0:07:23]} g6 {[%emt 0:00:11]} 6. Ne5 {[%emt 0:07:54]} Bg7 {[%emt 0:00:50]} 7. Nxc4 {[%emt 0:01:18]} Be6 {[%emt 0:00:38]} 8. Ne5 {[%emt 0:00:11]} Nbd7 {[%emt 0:01:26]} 9. Nf3 {[%emt 0:00:37]} O-O {[%emt 0:00:56]} 10. O-O {[%emt 0:00:06]} Nb6 {[%emt 0:02:30]} 11. Nc3 {[%emt 0:13:26]} Nbd5 {[%emt 0:02:54]} 12. Na4 {[%emt 0:04:03]} Qc8 {[%emt 0:08:43]} 13. Ng5 {[%emt 0:00:30]} Bg4 {[%emt 0:01:07]} 14. h3 {[%emt 0:01:35]} h6 {[%emt 0:03:57]} 15. hxg4 {[%emt 0:00:32]} hxg5 {[%emt 0:00:04]} 16. e4 {[%emt 0:00:07]} Nb6 {[%emt 0:00:57]} 17. e5 {[%emt 0:00:18]} Nfd5 {[%emt 0:02:15]} 18. Nc5 {[%emt 0:00:56]} Nd7 {[%emt 0:06:12]} 19. Ne4 {[%emt 0:00:39]} Rd8 {[%emt 0:02:35]} 20. Nxg5 {[%emt 0:08:58]} Nf8 {[%emt 0:01:08]} 21. Bxd5 {[%emt 0:10:34]} Rxd5 {[%emt 0:00:37]} 22. Qf3 {[%emt 0:00:48]} f6 {[%emt 0:00:39]} 23. exf6 {[%emt 0:00:41]} exf6 {[%emt 0:00:18]} 24. Ne4 {[%emt 0:00:07]} f5 {[%emt 0:00:52]} 25. gxf5 {[%emt 0:00:20]} Qxf5 {[%emt 0:00:30]} 26. Qxf5 {[%emt 0:00:12]} gxf5 {[%emt 0:00:14]} 27. Nc3 {[%emt 0:01:31]} Rxd4 {[%emt 0:02:16]} 28. Be3 {[%emt 0:07:02]} Rb4 {[%emt 0:01:35]} 29. Rab1 {[%emt 0:01:00]} b6 {[%emt 0:01:01]} 30. Rfd1 {[%emt 0:01:02]} Ne6 {[%emt 0:00:41]} 31. Rd6 {[%emt 0:00:39]} Bxc3 {[%emt 0:09:26]} 32. Rxe6 {[%emt 0:00:11]} Rd8 {[%emt 0:02:31]} 33. Rc1 {[%emt 0:01:18]} Bxb2 {[%emt 0:01:01]} 34. Rcxc6 {[%emt 0:00:02]} Rd7 {[%emt 0:01:49]} 35. Rg6+ {[%emt 0:01:10]} Kf7 {[%emt 0:02:40]} 36. Rg5 {[%emt 0:01:45]} Rb5 {[%emt 0:00:50]} 37. g4 {[%emt 0:03:15]} Ra5 {[%emt 0:03:09]} 38. gxf5 {[%emt 0:00:33]} Rdd5 {[%emt 0:07:34]} 39. Rh5 {[%emt 0:02:54]} Rxf5 {[%emt 0:00:18]} 40. Rxf5+ {[%emt 0:00:49]} Rxf5 {[%emt 0:00:05]} 41. Rc7+ {[%emt 0:00:04]} Ke6 {[%emt 0:00:40]} 42. Rxa7 {[%emt 0:00:06]} Ra5 {[%emt 0:00:42]} 43. Bxb6 {[%emt 0:00:26]} Rxa7 {[%emt 0:00:06]} 44. Bxa7 {[%emt 0:00:03]} Ba3 {[%emt 0:01:08]} 45. Kg2 {[%emt 0:00:21]} Kd5 {[%emt 0:00:33]} 46. Kf3 {[%emt 0:03:21]} Be7 {[%emt 0:09:10]} 47. Ke3 {[%emt 0:01:20]} Bd6 {[%emt 0:02:28]} 48. Kd3 {[%emt 0:01:16]} Kc6 {[%emt 0:02:19]} 49. Kc4 {[%emt 0:00:32]} Bh2 {[%emt 0:00:13]} 50. Bd4 {[%emt 0:00:22]} Bf4 {[%emt 0:00:53]} 51. a4 {[%emt 0:00:53]} Kb7 {[%emt 0:00:57]} 52. Kb5 {[%emt 0:02:46]} Bh2 {[%emt 0:01:07]} 53. f3 {[%emt 0:01:14]} Bf4 {[%emt 0:00:05]} 54. Bc3 {[%emt 0:00:51]} Bc1 {[%emt 0:00:21]} 55. Kc4 {[%emt 0:00:17]} Ka6 {[%emt 0:00:23]} 56. Kd3 {[%emt 0:00:05]} Bf4 {[%emt 0:00:51]} 57. Bd2 {[%emt 0:00:05]} Bc7 {[%emt 0:01:27]} 58. Ke4 {[%emt 0:00:20]} Bd6 {[%emt 0:00:48]} 59. Bc3 {[%emt 0:00:15]} Bg3 {[%emt 0:00:25]} 60. Be5 {[%emt 0:02:45]} Be1 {[%emt 0:00:45]} 61. f4 {[%emt 0:00:07]} Ka5 {[%emt 0:00:17]} 62. f5 {[%emt 0:00:05]} Bh4 {[%emt 0:00:09]} 63. Kd5 {[%emt 0:00:06]} Kxa4 {[%emt 0:00:14]} 64. Ke6 {[%emt 0:00:05]} Kb5 {[%emt 0:00:19]} 65. Bd6 {[%emt 0:00:34]} Kc6 {[%emt 0:01:07]} 66. Be7 {[%emt 0:00:20]} Bf2 {[%emt 0:01:58]} 67. f6 {[%emt 0:00:06]} Bd4 {[%emt 0:00:02]} 68. f7 {[%emt 0:00:10]} Bg7 {[%emt 0:00:04]} 69. Kf5 {[%emt 0:00:22]} 1-0

[Event "10th LBHM Open 2024"]
[Site "Pune"]
[Date "2024.05.21"]
[Round "8.4"]
[White "Harshit Ranjan Sahu"]
[Black "Aronyak Ghosh"]
[Result "0-1"]
[ECO "B15"]
[WhiteElo "1945"]
[BlackElo "2536"]
[PlyCount "154"]
[EventDate "2024.05.21"]
[EventType "swiss"]
[EventCountry "IND"]
[TimeControl "5400+30"]

1. e4 {[%emt 0:00:38]} c6 {[%emt 0:01:51]} 2. d4 {[%emt 0:00:25]} d5 {[%emt 0:00:06]} 3. Nc3 {[%emt 0:00:57]} dxe4 {[%emt 0:00:32]} 4. Nxe4 {[%emt 0:00:05]} Nf6 {[%emt 0:00:34]} 5. Nxf6+ {[%emt 0:02:27]} exf6 {[%emt 0:00:09]} 6. Bf4 {[%emt 0:01:07]} Qb6 {[%emt 0:05:25]} 7. Qe2+ {[%emt 0:03:57]} Be6 {[%emt 0:00:48]} 8. c3 {[%emt 0:01:41]} Be7 {[%emt 0:03:59]} 9. Nf3 {[%emt 0:00:51]} O-O {[%emt 0:03:16]} 10. Qd2 {[%emt 0:00:33]} Rd8 {[%emt 0:14:04]} 11. Be2 {[%emt 0:00:52]} c5 {[%emt 0:00:48]} 12. O-O {[%emt 0:00:35]} Nc6 {[%emt 0:00:04]} 13. Be3 {[%emt 0:01:22]} Qc7 {[%emt 0:01:16]} 14. Rfd1 {[%emt 0:00:57]} c4 {[%emt 0:11:18]} 15. Qe1 {[%emt 0:01:54]} b5 {[%emt 0:05:04]} 16. Nd2 {[%emt 0:03:01]} Bd6 {[%emt 0:03:31]} 17. g3 {[%emt 0:02:22]} Bd5 {[%emt 0:06:30]} 18. Bf3 {[%emt 0:08:18]} Ne7 {[%emt 0:00:07]} 19. Bxd5 {[%emt 0:00:30]} Nxd5 {[%emt 0:00:03]} 20. Qe2 {[%emt 0:00:14]} Rac8 {[%emt 0:02:19]} 21. Rac1 {[%emt 0:02:04]} Bf8 {[%emt 0:03:47]} 22. Re1 {[%emt 0:01:14]} Qd7 {[%emt 0:00:55]} 23. a3 {[%emt 0:02:32]} Qf5 {[%emt 0:06:42]} 24. Qf3 {[%emt 0:04:40]} Qxf3 {[%emt 0:00:02]} 25. Nxf3 {[%emt 0:00:09]} f5 {[%emt 0:00:04]} 26. Bd2 {[%emt 0:00:56]} Bd6 {[%emt 0:00:16]} 27. Kg2 {[%emt 0:01:08]} f6 {[%emt 0:00:18]} 28. h4 {[%emt 0:03:34]} h5 {[%emt 0:02:21]} 29. Nh2 {[%emt 0:02:33]} f4 {[%emt 0:01:20]} 30. Kf3 {[%emt 0:02:02]} fxg3 {[%emt 0:01:43]} 31. fxg3 {[%emt 0:00:03]} Kf7 {[%emt 0:00:46]} 32. Nf1 {[%emt 0:00:25]} Re8 {[%emt 0:02:15]} 33. Bf4 {[%emt 0:00:44]} Bf8 {[%emt 0:03:16]} 34. Ne3 {[%emt 0:01:57]} Nb6 {[%emt 0:00:05]} 35. Rcd1 {[%emt 0:00:40]} Na4 {[%emt 0:00:50]} 36. Rd2 {[%emt 0:00:14]} Rcd8 {[%emt 0:00:03]} 37. Red1 {[%emt 0:00:31]} Rd7 {[%emt 0:00:22]} 38. Rg2 {[%emt 0:02:02]} a6 {[%emt 0:02:29]} 39. g4 {[%emt 0:00:46]} hxg4+ {[%emt 0:00:03]} 40. Nxg4 {[%emt 0:00:07]} Nb6 {[%emt 0:01:54]} 41. h5 {[%emt 0:03:06]} Nd5 {[%emt 0:04:07]} 42. Bd2 {[%emt 0:00:25]} Rde7 {[%emt 0:01:17]} 43. Rdg1 {[%emt 0:00:24]} Re6 {[%emt 0:00:31]} 44. Rh1 {[%emt 0:00:51]} Bd6 {[%emt 0:01:16]} 45. Rhg1 {[%emt 0:00:51]} Bf8 {[%emt 0:00:26]} 46. Rh1 {[%emt 0:00:08]} a5 {[%emt 0:00:38]} 47. Rhg1 {[%emt 0:00:47]} Rb6 {[%emt 0:00:33]} 48. Ne3 {[%emt 0:05:04]} Nxe3 {[%emt 0:00:15]} 49. Bxe3 {[%emt 0:00:01]} Rd6 {[%emt 0:01:46]} 50. Bf4 {[%emt 0:01:15]} Rd7 {[%emt 0:00:01]} 51. Rg6 {[%emt 0:04:54]} Rd5 {[%emt 0:01:12]} 52. h6 {[%emt 0:01:02]} gxh6 {[%emt 0:01:04]} 53. Bxh6 {[%emt 0:00:30]} Bxh6 {[%emt 0:02:04]} 54. Rxh6 {[%emt 0:00:14]} Rf5+ {[%emt 0:00:05]} 55. Kg2 {[%emt 0:00:41]} Re2+ {[%emt 0:00:50]} 56. Kh3 {[%emt 0:00:14]} Rxb2 {[%emt 0:01:12]} 57. Rh7+ {[%emt 0:00:18]} Ke6 {[%emt 0:00:03]} 58. Re1+ {[%emt 0:00:13]} Kd6 {[%emt 0:00:16]} 59. Re8 {[%emt 0:01:08]} Rg5 {[%emt 0:01:26]} 60. Rf7 {[%emt 0:01:31]} Rf2 {[%emt 0:01:00]} 61. Re3 {[%emt 0:02:47]} Rg6 {[%emt 0:01:39]} 62. Ra7 {[%emt 0:00:41]} Rf5 {[%emt 0:00:47]} 63. Kh2 {[%emt 0:01:06]} Rh5+ {[%emt 0:02:24]} 64. Rh3 {[%emt 0:00:02]} Rxh3+ {[%emt 0:00:04]} 65. Kxh3 {[%emt 0:00:08]} b4 {[%emt 0:00:57]} 66. Ra6+ {[%emt 0:00:28]} Kd7 {[%emt 0:00:52]} 67. axb4 {[%emt 0:00:43]} axb4 {[%emt 0:00:01]} 68. cxb4 {[%emt 0:00:17]} Rg8 {[%emt 0:00:39]} 69. Rxf6 {[%emt 0:01:35]} c3 {[%emt 0:00:38]} 70. Rf1 {[%emt 0:01:18]} Kd6 {[%emt 0:00:26]} 71. Rc1 {[%emt 0:32:11]} Rc8 {[%emt 0:00:03]} 72. b5 {[%emt 0:00:00]} Kd5 {[%emt 0:00:10]} 73. b6 {[%emt 0:00:00]} Kxd4 {[%emt 0:00:25]} 74. Kg3 {[%emt 0:00:00]} Kd3 {[%emt 0:01:06]} 75. Rd1+ {[%emt 0:00:00]} Ke2 {[%emt 0:00:16]} 76. Rh1 {[%emt 0:00:00]} c2 {[%emt 0:01:02]} 77. b7 {[%emt 0:00:00]} Rb8 {[%emt 0:00:05]} 0-1

[Event "10th LBHM Open 2024"]
[Site "Pune"]
[Date "2024.05.21"]
[Round "8.5"]
[White "Shaun Deon Sequeira"]
[Black "Ratnakaran, K.."]
[Result "0-1"]
[ECO "B00"]
[WhiteElo "1926"]
[BlackElo "2275"]
[PlyCount "114"]
[EventDate "2024.05.21"]
[EventType "swiss"]
[EventCountry "IND"]
[TimeControl "5400+30"]

1. e4 {[%emt 0:00:07]} e6 {[%emt 0:00:05]} 2. d4 {[%emt 0:00:09]} b6 {[%emt 0:00:05]} 3. Nc3 {[%emt 0:00:55]} Bb7 {[%emt 0:00:06]} 4. Nf3 {[%emt 0:00:05]} d6 {[%emt 0:00:09]} 5. Bd3 {[%emt 0:02:04]} Nd7 {[%emt 0:00:07]} 6. O-O {[%emt 0:00:30]} Be7 {[%emt 0:00:06]} 7. Re1 {[%emt 0:01:24]} a6 {[%emt 0:00:08]} 8. a4 {[%emt 0:00:24]} h5 {[%emt 0:00:07]} 9. Qe2 {[%emt 0:03:55]} c5 {[%emt 0:00:37]} 10. d5 {[%emt 0:03:38]} e5 {[%emt 0:00:07]} 11. Rb1 {[%emt 0:00:46]} h4 {[%emt 0:03:45]} 12. Nd2 {[%emt 1:22:33]} Bg5 {[%emt 0:04:39]} 13. Nc4 {[%emt 0:00:00]} Rh6 {[%emt 0:00:07]} 14. Bxg5 {[%emt 0:00:00]} Qxg5 {[%emt 0:00:05]} 15. Qe3 {[%emt 0:00:00]} Qd8 {[%emt 0:08:24]} 16. f4 {[%emt 0:00:00]} Bc8 {[%emt 0:00:15]} 17. fxe5 {[%emt 0:00:00]} Nxe5 {[%emt 0:00:24]} 18. Nxe5 {[%emt 0:00:00]} dxe5 {[%emt 0:00:05]} 19. b4 {[%emt 0:00:00]} cxb4 {[%emt 0:00:41]} 20. Rxb4 {[%emt 0:00:00]} Rg6 {[%emt 0:00:05]} 21. Reb1 {[%emt 0:00:00]} Rb8 {[%emt 0:01:18]} 22. Nd1 {[%emt 0:00:00]} Nf6 {[%emt 0:01:30]} 23. Be2 {[%emt 0:00:00]} Bg4 {[%emt 0:03:41]} 24. Nf2 {[%emt 0:00:00]} Bxe2 {[%emt 0:01:34]} 25. Qxe2 {[%emt 0:00:00]} a5 {[%emt 0:00:21]} 26. R4b3 {[%emt 0:00:00]} Kf8 {[%emt 0:00:58]} 27. Nd3 {[%emt 0:00:00]} Qc7 {[%emt 0:13:45]} 28. Nf2 {[%emt 0:00:00]} Kg8 {[%emt 0:03:53]} 29. Kh1 {[%emt 0:00:00]} Nd7 {[%emt 0:01:50]} 30. Rh3 {[%emt 0:00:00]} Rc8 {[%emt 0:01:33]} 31. c3 {[%emt 0:00:00]} Qc4 {[%emt 0:01:36]} 32. Qxc4 {[%emt 0:02:22]} Rxc4 {[%emt 0:00:07]} 33. Rxh4 {[%emt 0:00:03]} Rxc3 {[%emt 0:01:52]} 34. Kg1 {[%emt 0:03:12]} Rc4 {[%emt 0:03:13]} 35. Rh3 {[%emt 0:01:44]} Rxa4 {[%emt 0:00:17]} 36. Rc3 {[%emt 0:00:24]} Nc5 {[%emt 0:00:36]} 37. Nd3 {[%emt 0:00:29]} Ra2 {[%emt 0:06:27]} 38. Nxc5 {[%emt 0:01:01]} Rgxg2+ {[%emt 0:02:29]} 39. Kh1 {[%emt 0:00:06]} Rxh2+ {[%emt 0:01:18]} 40. Kg1 {[%emt 0:00:14]} Rag2+ {[%emt 0:00:40]} 41. Kf1 {[%emt 0:00:04]} bxc5 {[%emt 0:00:16]} 42. Rxc5 {[%emt 0:00:41]} Rd2 {[%emt 0:00:38]} 43. Kg1 {[%emt 0:00:38]} Rhe2 {[%emt 0:00:55]} 44. Rxa5 {[%emt 0:00:37]} Rxe4 {[%emt 0:00:10]} 45. Rf1 {[%emt 0:00:18]} Rg4+ {[%emt 0:00:39]} 46. Kh1 {[%emt 0:00:08]} f6 {[%emt 0:00:08]} 47. Ra8+ {[%emt 0:00:27]} Kh7 {[%emt 0:00:11]} 48. Rd8 {[%emt 0:00:05]} Rgd4 {[%emt 0:00:27]} 49. Kg1 {[%emt 0:00:08]} Rxd5 {[%emt 0:00:08]} 50. Rxd5 {[%emt 0:00:03]} Rxd5 {[%emt 0:00:05]} 51. Kf2 {[%emt 0:00:04]} g5 {[%emt 0:00:07]} 52. Ra1 {[%emt 0:00:16]} Kg6 {[%emt 0:00:06]} 53. Kf3 {[%emt 0:00:06]} Kf5 {[%emt 0:00:11]} 54. Ra3 {[%emt 0:00:06]} Rd3+ {[%emt 0:00:08]} 55. Rxd3 {[%emt 0:00:05]} e4+ {[%emt 0:00:03]} 56. Ke3 {[%emt 0:00:05]} exd3 {[%emt 0:00:04]} 57. Kxd3 {[%emt 0:00:03]} Kf4 {[%emt 0:00:19]} 0-1

[Event "10th LBHM Open 2024"]
[Site "Pune"]
[Date "2024.05.21"]
[Round "8.6"]
[White "Md Imran"]
[Black "Atharva Kale"]
[Result "1-0"]
[ECO "E11"]
[WhiteElo "2184"]
[BlackElo "1861"]
[PlyCount "61"]
[EventDate "2024.05.21"]
[EventType "swiss"]
[EventCountry "IND"]
[TimeControl "5400+30"]

1. d4 {[%emt 0:02:59]} d5 {[%emt 0:00:27]} 2. Nf3 {[%emt 0:00:10]} Nf6 {[%emt 0:00:05]} 3. c4 {[%emt 0:00:33]} e6 {[%emt 0:00:05]} 4. g3 {[%emt 0:00:04]} Bb4+ {[%emt 0:00:12]} 5. Bd2 {[%emt 0:00:39]} Be7 {[%emt 0:00:05]} 6. Bg2 {[%emt 0:00:05]} O-O {[%emt 0:00:06]} 7. O-O {[%emt 0:00:39]} Nbd7 {[%emt 0:00:06]} 8. Bf4 {[%emt 0:00:36]} dxc4 {[%emt 0:02:21]} 9. Qc2 {[%emt 0:00:13]} Nd5 {[%emt 0:02:45]} 10. Qxc4 {[%emt 0:05:09]} Nxf4 {[%emt 0:01:20]} 11. gxf4 {[%emt 0:00:03]} Nb6 {[%emt 0:20:22]} 12. Qc1 {[%emt 0:00:31]} Nd5 {[%emt 0:03:51]} 13. Nc3 {[%emt 0:01:45]} Bd6 {[%emt 0:30:17]} 14. e3 {[%emt 0:00:08]} c6 {[%emt 0:02:39]} 15. Qc2 {[%emt 0:00:36]} b6 {[%emt 0:02:12]} 16. Ne4 {[%emt 0:01:31]} Bb7 {[%emt 0:01:16]} 17. f5 {[%emt 0:03:18]} exf5 {[%emt 0:03:45]} 18. Nxd6 {[%emt 0:00:05]} Qxd6 {[%emt 0:00:05]} 19. Qxf5 {[%emt 0:00:04]} Ne7 {[%emt 0:06:22]} 20. Qg5 {[%emt 0:02:42]} Rac8 {[%emt 0:01:32]} 21. Rac1 {[%emt 0:00:48]} h6 {[%emt 0:01:28]} 22. Qg3 {[%emt 0:00:09]} Qb4 {[%emt 0:00:10]} 23. b3 {[%emt 0:02:13]} Nd5 {[%emt 0:01:30]} 24. Nh4 {[%emt 0:02:25]} Ne7 {[%emt 0:05:46]} 25. Kh1 {[%emt 0:04:06]} Kh7 {[%emt 0:03:08]} 26. Rg1 {[%emt 0:01:17]} g6 {[%emt 0:00:13]} 27. Be4 {[%emt 0:00:16]} Ba8 {[%emt 0:00:42]} 28. Nxg6 {[%emt 0:00:58]} fxg6 {[%emt 0:01:41]} 29. Bxg6+ {[%emt 0:00:03]} Nxg6 {[%emt 0:00:07]} 30. Qxg6+ {[%emt 0:00:02]} Kh8 {[%emt 0:00:06]} 31. Qxh6# {[%emt 0:00:03]} 1-0

[Event "10th LBHM Open 2024"]
[Site "Pune"]
[Date "2024.05.21"]
[Round "8.7"]
[White "Daksh Goyal"]
[Black "Dutta, Joydeep"]
[Result "1/2-1/2"]
[ECO "C54"]
[WhiteElo "1910"]
[BlackElo "2073"]
[PlyCount "75"]
[EventDate "2024.05.21"]
[EventType "swiss"]
[EventCountry "IND"]
[TimeControl "5400+30"]

1. e4 {[%emt 0:04:27]} e5 {[%emt 0:00:14]} 2. Nf3 {[%emt 0:00:10]} Nc6 {[%emt 0:00:02]} 3. Bc4 {[%emt 0:00:02]} Nf6 {[%emt 0:00:38]} 4. d3 {[%emt 0:00:18]} Bc5 {[%emt 0:00:10]} 5. c3 {[%emt 0:00:21]} d6 {[%emt 0:00:08]} 6. O-O {[%emt 0:00:11]} a6 {[%emt 0:01:23]} 7. a4 {[%emt 0:00:26]} Ba7 {[%emt 0:02:34]} 8. Re1 {[%emt 0:02:11]} O-O {[%emt 0:02:10]} 9. h3 {[%emt 0:01:02]} h6 {[%emt 0:02:58]} 10. Nbd2 {[%emt 0:01:11]} Nh5 {[%emt 0:11:19]} 11. Nf1 {[%emt 0:07:45]} Qf6 {[%emt 0:02:13]} 12. b4 {[%emt 0:08:39]} Be6 {[%emt 0:03:17]} 13. Bxe6 {[%emt 0:00:37]} fxe6 {[%emt 0:00:25]} 14. Ra2 {[%emt 0:00:22]} Nf4 {[%emt 0:04:35]} 15. Bxf4 {[%emt 0:00:20]} Qxf4 {[%emt 0:00:34]} 16. N1h2 {[%emt 0:00:34]} a5 {[%emt 0:07:11]} 17. b5 {[%emt 0:02:35]} Ne7 {[%emt 0:01:05]} 18. Qb3 {[%emt 0:02:00]} Qf7 {[%emt 0:03:17]} 19. g3 Rae8 {[%emt 0:05:32]} 20. Kg2 {[%emt 0:05:10]} Bb6 {[%emt 0:04:53]} 21. Rae2 {[%emt 0:04:50]} Kh8 {[%emt 0:04:22]} 22. h4 {[%emt 0:11:58]} Ng8 {[%emt 0:03:24]} 23. Rf1 {[%emt 0:13:03]} Nf6 {[%emt 0:04:21]} 24. Nd2 {[%emt 0:01:34]} Qg6 {[%emt 0:01:40]} 25. f3 {[%emt 0:06:25]} Nh5 {[%emt 0:04:45]} 26. Ng4 {[%emt 0:01:02]} Rxf3 {[%emt 0:01:39]} 27. Rxf3 {[%emt 0:16:54]} Qxg4 {[%emt 0:00:03]} 28. Qd1 {[%emt 0:01:25]} Nf4+ {[%emt 0:01:41]} 29. Kh1 {[%emt 0:00:08]} Nxe2 {[%emt 0:06:30]} 30. Qxe2 {[%emt 0:00:01]} Qh3+ {[%emt 0:02:17]} 31. Qh2 {[%emt 0:00:03]} Qxh2+ {[%emt 0:01:24]} 32. Kxh2 {[%emt 0:00:02]} Kg8 {[%emt 0:00:02]} 33. Nc4 {[%emt 0:02:33]} Rf8 {[%emt 0:00:31]} 34. Kg2 {[%emt 0:02:48]} Rf7 {[%emt 0:01:14]} 35. g4 {[%emt 0:01:27]} g6 {[%emt 0:03:57]} 36. Rxf7 {[%emt 0:03:06]} Kxf7 {[%emt 0:00:02]} 37. Nxb6 {[%emt 0:00:30]} cxb6 {[%emt 0:00:04]} 38. c4 {[%emt 0:00:31]} 1/2-1/2

[Event "10th LBHM Open 2024"]
[Site "Pune"]
[Date "2024.05.21"]
[Round "8.8"]
[White "Arpith S Bijoy"]
[Black "Nimay Agrawal"]
[Result "1/2-1/2"]
[ECO "A03"]
[WhiteElo "2011"]
[BlackElo "1856"]
[PlyCount "150"]
[EventDate "2024.05.21"]
[EventType "swiss"]
[EventCountry "IND"]
[TimeControl "5400+30"]

1. b3 {[%emt 0:05:46]} d5 {[%emt 0:00:26]} 2. Bb2 {[%emt 0:00:09]} Bf5 {[%emt 0:00:37]} 3. e3 {[%emt 0:00:17]} e6 {[%emt 0:00:30]} 4. f4 {[%emt 0:00:17]} Nf6 {[%emt 0:02:28]} 5. Nf3 {[%emt 0:00:13]} h6 {[%emt 0:04:15]} 6. Be2 {[%emt 0:00:53]} Be7 {[%emt 0:01:43]} 7. O-O {[%emt 0:00:44]} O-O {[%emt 0:00:09]} 8. Ne5 {[%emt 0:00:55]} Bh7 {[%emt 0:02:46]} 9. d3 {[%emt 0:06:10]} c5 {[%emt 0:00:30]} 10. Qe1 {[%emt 0:00:30]} Ne8 {[%emt 0:18:35]} 11. Qg3 Bh4 {[%emt 0:05:03]} 12. Qh3 {[%emt 0:05:40]} Bf6 {[%emt 0:00:54]} 13. Nd2 {[%emt 0:16:32]} Nc6 {[%emt 0:15:00]} 14. Nxc6 {[%emt 0:06:58]} bxc6 {[%emt 0:00:30]} 15. Be5 {[%emt 0:00:30]} Nd6 {[%emt 0:08:59]} 16. Rfd1 {[%emt 0:04:42]} Nb5 {[%emt 0:12:33]} 17. Nb1 {[%emt 0:01:15]} Bxe5 {[%emt 0:02:32]} 18. fxe5 {[%emt 0:00:08]} Qg5 {[%emt 0:01:04]} 19. Qg3 {[%emt 0:00:55]} Qxg3 {[%emt 0:00:41]} 20. hxg3 {[%emt 0:00:03]} f6 {[%emt 0:01:18]} 21. c4 {[%emt 0:00:36]} Nc7 {[%emt 0:00:45]} 22. exf6 {[%emt 0:02:19]} Rxf6 {[%emt 0:05:54]} 23. Nc3 {[%emt 0:16:34]} e5 {[%emt 0:02:33]} 24. Na4 {[%emt 0:01:02]} Ne6 {[%emt 0:01:45]} 25. Rf1 {[%emt 0:00:47]} Raf8 {[%emt 0:02:25]} 26. Rxf6 {[%emt 0:00:24]} gxf6 {[%emt 0:01:08]} 27. Rc1 {[%emt 0:01:32]} d4 {[%emt 0:03:48]} 28. Kf2 {[%emt 0:01:17]} e4 {[%emt 0:00:25]} 29. dxe4 {[%emt 0:00:15]} Bxe4 {[%emt 0:00:13]} 30. Bf3 {[%emt 0:00:12]} f5 {[%emt 0:00:26]} 31. Rh1 {[%emt 0:00:11]} Kg7 {[%emt 0:00:40]} 32. Ke2 {[%emt 0:00:29]} Re8 {[%emt 0:00:30]} 33. Bxe4 {[%emt 0:00:25]} fxe4 {[%emt 0:00:20]} 34. Rh4 {[%emt 0:00:15]} d3+ {[%emt 0:01:47]} 35. Kd2 {[%emt 0:00:07]} Ng5 {[%emt 0:01:53]} 36. Nxc5 {[%emt 0:00:10]} Re5 {[%emt 0:00:21]} 37. b4 {[%emt 0:00:16]} a5 {[%emt 0:00:41]} 38. a3 {[%emt 0:00:06]} axb4 {[%emt 0:00:15]} 39. axb4 {[%emt 0:00:02]} Re8 {[%emt 0:00:26]} 40. Rf4 {[%emt 0:00:07]} Rf8 {[%emt 0:02:10]} 41. b5 {[%emt 0:01:06]} cxb5 {[%emt 0:00:22]} 42. cxb5 {[%emt 0:00:07]} Rb8 {[%emt 0:00:17]} 43. Rf5 {[%emt 0:00:31]} Kg6 44. Rf4 {[%emt 0:05:25]} Rxb5 {[%emt 0:00:37]} 45. Nxe4 {[%emt 0:00:21]} Nxe4+ {[%emt 0:00:06]} 46. Rxe4 {[%emt 0:00:04]} Rb2+ {[%emt 0:00:02]} 47. Kxd3 {[%emt 0:00:06]} Rxg2 {[%emt 0:00:03]} 48. Rg4+ {[%emt 0:00:07]} Kf5 {[%emt 0:00:06]} 49. Rg8 {[%emt 0:00:09]} h5 {[%emt 0:00:11]} 50. Rf8+ {[%emt 0:00:42]} Ke6 {[%emt 0:00:55]} 51. Rf3 {[%emt 0:00:05]} Ke5 {[%emt 0:00:14]} 52. e4 {[%emt 0:01:13]} Rg1 {[%emt 0:00:29]} 53. Rf5+ {[%emt 0:00:19]} Ke6 {[%emt 0:00:05]} 54. Rg5 {[%emt 0:00:08]} Kf6 {[%emt 0:00:45]} 55. Rxh5 {[%emt 0:01:39]} Rxg3+ {[%emt 0:00:03]} 56. Kd4 {[%emt 0:00:08]} Ra3 {[%emt 0:00:22]} 57. Rh6+ {[%emt 0:00:07]} Ke7 {[%emt 0:00:13]} 58. Rh5 {[%emt 0:00:41]} Ra4+ {[%emt 0:00:06]} 59. Ke3 {[%emt 0:00:04]} Ra6 {[%emt 0:00:49]} 60. Rh7+ {[%emt 0:00:08]} Ke8 {[%emt 0:00:04]} 61. Kf4 {[%emt 0:00:04]} Rb6 {[%emt 0:00:13]} 62. Ra7 {[%emt 0:00:08]} Rc6 {[%emt 0:00:04]} 63. Ke5 {[%emt 0:00:04]} Rh6 {[%emt 0:00:03]} 64. Kd5 {[%emt 0:00:03]} Rg6 {[%emt 0:00:19]} 65. Rc7 {[%emt 0:00:06]} Rh6 {[%emt 0:00:06]} 66. Rb7 {[%emt 0:00:23]} Rg6 {[%emt 0:00:16]} 67. Ke5 {[%emt 0:00:11]} Ra6 {[%emt 0:00:05]} 68. Kf5 {[%emt 0:00:07]} Rc6 {[%emt 0:00:08]} 69. e5 {[%emt 0:00:03]} Ra6 {[%emt 0:00:04]} 70. Rg7 {[%emt 0:00:05]} Rb6 {[%emt 0:00:10]} 71. Ra7 {[%emt 0:00:08]} Rc6 {[%emt 0:00:03]} 72. Ra2 {[%emt 0:00:08]} Rb6 {[%emt 0:00:13]} 73. Rd2 {[%emt 0:00:01]} Ke7 {[%emt 0:00:17]} 74. Rc2 {[%emt 0:00:08]} Ra6 {[%emt 0:00:07]} 75. Rc7+ {[%emt 0:00:07]} Ke8 {[%emt 0:00:19]} 1/2-1/2